[Event "10th Iberoamericano-ch 2024"]
[Site "Linares"]
[Date "2024.09.28"]
[Round "6.37"]
[White "Aragon Trujillo, Ricardo M."]
[Black "Galvan Cipriani, Viviana"]
[Result "0-1"]
[Annotator "ChessBase"]
[ECO "B22"]
[WhiteElo "2057"]
[BlackElo "2141"]
[PlyCount "74"]
[EventDate "2024.09.25"]
[EventType "swiss"]
[EventCountry "ESP"]
[SourceTitle "playchess.com"]
[Source "ChessBase"]
[SourceQuality "1"]
[TimeControl "5400+30"]

1. e4 c5 {[%emt 0:05:13]} 2. Nf3 {[%emt 0:00:12]} Nc6 {[%emt 0:00:38]} 3. c3 {[%emt 0:00:08]} Nf6 {[%emt 0:00:07]} 4. e5 {[%emt 0:00:04]} Nd5 {[%emt 0:00:07]} 5. Bc4 {[%emt 0:00:04]} Nb6 {[%emt 0:05:50]} 6. Bb3 {[%emt 0:00:04]} d6 {[%emt 0:00:45]} 7. exd6 {[%emt 0:00:05]} Qxd6 {[%emt 0:00:07]} 8. O-O {[%emt 0:00:10]} Be6 {[%emt 0:04:20]} 9. Bxe6 {[%emt 0:00:30]} Qxe6 {[%emt 0:00:06]} 10. Re1 {[%emt 0:01:40]} Qd7 {[%emt 0:00:45]} 11. a4 {[%emt 0:04:31]} g6 {[%emt 0:04:15]} 12. a5 {[%emt 0:04:13]} Nd5 {[%emt 0:00:58]} 13. d4 {[%emt 0:05:51]} cxd4 {[%emt 0:01:13]} 14. Nxd4 {[%emt 0:01:12]} Bg7 {[%emt 0:00:40]} 15. Nxc6 {[%emt 0:06:59]} Qxc6 {[%emt 0:06:05]} 16. a6 {[%emt 0:11:11]} b6 {[%emt 0:01:09]} 17. Qb3 {[%emt 0:09:09]} e6 {[%emt 0:05:23]} 18. c4 {[%emt 0:08:05]} Ne7 {[%emt 0:00:29]} 19. Bg5 {[%emt 0:06:30]} Nf5 {[%emt 0:03:04]} 20. Qb4 {[%emt 0:02:37]} h6 {[%emt 0:12:19]} 21. Bf4 {[%emt 0:03:02]} Nh4 {[%emt 0:15:50]} 22. f3 {[%emt 0:09:01]} Qc5+ {[%emt 0:00:28]} 23. Qxc5 {[%emt 0:00:11]} bxc5 {[%emt 0:00:04]} 24. Be5 {[%emt 0:01:25]} O-O {[%emt 0:00:24]} 25. Ra5 {[%emt 0:01:51]} Bxe5 {[%emt 0:16:29]} 26. Rxe5 {[%emt 0:00:01]} Rab8 {[%emt 0:00:06]} 27. Rb5 {[%emt 0:02:48]} Rbd8 {[%emt 0:06:08]} 28. Kf2 {[%emt 0:02:27]} Rd6 {[%emt 0:00:45]} 29. Rbxc5 {[%emt 0:04:27]} Rxa6 {[%emt 0:00:16]} 30. Nc3 {[%emt 0:02:19]} Rd8 {[%emt 0:00:53]} 31. Re2 {[%emt 0:02:18]} Nf5 {[%emt 0:02:39]} 32. Rc7 {[%emt 0:01:43]} Ra1 {[%emt 0:00:11]} 33. c5 {[%emt 0:02:26]} Kf8 {[%emt 0:01:39]} 34. Nb5 {[%emt 0:02:33]} Rdd1 {[%emt 0:01:49]} 35. g3 {[%emt 0:04:38]} Rh1 {[%emt 0:00:41]} 36. Kg2 {[%emt 0:00:08]} Rag1+ {[%emt 0:00:15]} 37. Kh3 {[%emt 0:00:54]} Rxg3# {[%emt 0:00:16]} 0-1

[Event "10th Iberoamericano-ch 2024"]
[Site "Linares"]
[Date "2024.09.28"]
[Round "6.38"]
[White "Follana Albelda, Lucia"]
[Black "Donate Moreno, Silvia"]
[Result "1-0"]
[Annotator "ChessBase"]
[ECO "B90"]
[WhiteElo "2043"]
[BlackElo "2126"]
[PlyCount "83"]
[EventDate "2024.09.25"]
[EventType "swiss"]
[EventCountry "ESP"]
[SourceTitle "playchess.com"]
[Source "ChessBase"]
[SourceQuality "1"]
[TimeControl "5400+30"]

1. e4 {[%emt 0:00:10]} c5 {[%emt 0:00:13]} 2. Nf3 {[%emt 0:00:13]} d6 {[%emt 0:00:15]} 3. d4 cxd4 {[%emt 0:00:06]} 4. Nxd4 {[%emt 0:00:15]} Nf6 {[%emt 0:00:07]} 5. Nc3 {[%emt 0:00:04]} a6 {[%emt 0:00:07]} 6. f3 {[%emt 0:00:06]} e5 {[%emt 0:00:09]} 7. Nb3 {[%emt 0:00:05]} Be6 8. Be3 {[%emt 0:00:05]} h5 {[%emt 0:00:25]} 9. Qd2 {[%emt 0:00:13]} Nbd7 {[%emt 0:00:20]} 10. O-O-O {[%emt 0:00:17]} Rc8 {[%emt 0:00:19]} 11. Kb1 {[%emt 0:00:22]} Be7 {[%emt 0:00:45]} 12. h4 b5 {[%emt 0:01:36]} 13. Bg5 {[%emt 0:00:36]} Qc7 {[%emt 0:03:51]} 14. a3 {[%emt 0:00:07]} Rb8 {[%emt 0:09:49]} 15. Nd5 {[%emt 0:17:51]} Bxd5 {[%emt 0:03:28]} 16. exd5 {[%emt 0:00:12]} Nb6 {[%emt 0:13:49]} 17. Bxf6 {[%emt 0:24:30]} Bxf6 {[%emt 0:00:28]} 18. Qe1 {[%emt 0:00:53]} O-O {[%emt 0:10:26]} 19. Qe4 {[%emt 0:01:53]} g6 {[%emt 0:02:19]} 20. g4 {[%emt 0:00:47]} Bg7 {[%emt 0:00:17]} 21. Rg1 {[%emt 0:13:57]} Nc4 {[%emt 0:09:34]} 22. gxh5 {[%emt 0:12:20]} f5 {[%emt 0:00:46]} 23. Qe1 {[%emt 0:00:17]} gxh5 {[%emt 0:02:27]} 24. Rg5 {[%emt 0:14:02]} a5 {[%emt 0:05:56]} 25. Bh3 {[%emt 0:03:16]} Rbc8 {[%emt 0:07:39]} 26. Qe2 {[%emt 0:02:53]} a4 {[%emt 0:02:23]} 27. Rdg1 {[%emt 0:05:56]} Rf7 {[%emt 0:04:10]} 28. Bxf5 {[%emt 0:02:07]} axb3 {[%emt 0:04:30]} 29. cxb3 {[%emt 0:00:44]} Kf8 {[%emt 0:06:26]} 30. Bxc8 {[%emt 0:00:34]} Qxc8 {[%emt 0:01:05]} 31. bxc4 {[%emt 0:00:08]} bxc4 {[%emt 0:00:12]} 32. Rc1 {[%emt 0:00:28]} Rc7 {[%emt 0:02:00]} 33. Qe4 Qb7 {[%emt 0:01:29]} 34. Rxc4 {[%emt 0:00:47]} Rf7 {[%emt 0:00:55]} 35. Rb4 {[%emt 0:00:19]} Qa6 {[%emt 0:00:44]} 36. Qg6 {[%emt 0:01:00]} Bf6 {[%emt 0:01:08]} 37. Rxh5 {[%emt 0:00:39]} Qa7 {[%emt 0:02:50]} 38. Rf5 {[%emt 0:00:23]} Ke7 {[%emt 0:00:14]} 39. h5 {[%emt 0:00:41]} Qa8 {[%emt 0:00:52]} 40. Rb5 {[%emt 0:00:35]} Qa6 {[%emt 0:00:12]} 41. a4 {[%emt 0:00:32]} Qc8 {[%emt 0:00:33]} 42. h6 {[%emt 0:00:31]} 1-0

[Event "10th Iberoamericano-ch 2024"]
[Site "Linares"]
[Date "2024.09.28"]
[Round "6.39"]
[White "Gomez Carreno, Martin"]
[Black "Zapata Campos, Lidia Karen"]
[Result "0-1"]
[Annotator "ChessBase"]
[ECO "B35"]
[WhiteElo "2124"]
[BlackElo "2029"]
[PlyCount "70"]
[EventDate "2024.09.25"]
[EventType "swiss"]
[EventCountry "ESP"]
[SourceTitle "playchess.com"]
[Source "ChessBase"]
[SourceQuality "1"]
[TimeControl "5400+30"]

1. e4 c5 {[%emt 0:04:22]} 2. Nc3 {[%emt 0:00:07]} Nc6 {[%emt 0:00:13]} 3. Nge2 {[%emt 0:00:14]} g6 {[%emt 0:00:15]} 4. d4 {[%emt 0:00:06]} cxd4 {[%emt 0:00:04]} 5. Nxd4 {[%emt 0:00:04]} Bg7 {[%emt 0:00:04]} 6. Be3 {[%emt 0:00:08]} d6 {[%emt 0:00:17]} 7. Bc4 {[%emt 0:00:37]} Nf6 {[%emt 0:00:16]} 8. f3 {[%emt 0:00:07]} O-O {[%emt 0:00:11]} 9. Bb3 {[%emt 0:00:06]} Bd7 {[%emt 0:01:38]} 10. h4 {[%emt 0:00:12]} Ne5 {[%emt 0:00:14]} 11. Qe2 {[%emt 0:03:54]} Rc8 {[%emt 0:00:34]} 12. O-O-O {[%emt 0:00:52]} Rxc3 {[%emt 0:04:00]} 13. bxc3 {[%emt 0:00:10]} Qa5 {[%emt 0:00:06]} 14. Kb1 {[%emt 0:05:56]} Qxc3 {[%emt 0:11:43]} 15. Bc1 {[%emt 0:04:02]} a5 {[%emt 0:01:07]} 16. Bb2 {[%emt 0:08:25]} Qc5 {[%emt 0:01:51]} 17. a4 {[%emt 0:02:11]} Nh5 {[%emt 0:03:07]} 18. Rhg1 {[%emt 0:06:41]} Nf4 {[%emt 0:08:02]} 19. Qd2 {[%emt 0:03:18]} b5 {[%emt 0:08:07]} 20. Nxb5 {[%emt 0:12:45]} Bxb5 {[%emt 0:01:06]} 21. Qxf4 {[%emt 0:00:39]} Bxa4 {[%emt 0:01:53]} 22. Qd2 {[%emt 0:10:04]} Nc4 {[%emt 0:07:01]} 23. Qd5 {[%emt 0:06:38]} Nxb2 {[%emt 0:02:43]} 24. Qxc5 {[%emt 0:01:31]} dxc5 {[%emt 0:00:11]} 25. Rd5 {[%emt 0:00:14]} c4 {[%emt 0:01:10]} 26. e5 {[%emt 0:02:26]} cxb3 {[%emt 0:01:46]} 27. Kxb2 {[%emt 0:04:33]} bxc2 {[%emt 0:00:29]} 28. Rxa5 {[%emt 0:00:14]} Rb8+ {[%emt 0:00:14]} 29. Ka1 {[%emt 0:01:36]} Bb5 {[%emt 0:00:57]} 30. Kb2 {[%emt 0:02:01]} Bd3+ {[%emt 0:00:08]} 31. Kc3 {[%emt 0:00:17]} Rc8+ {[%emt 0:03:53]} 32. Kxd3 {[%emt 0:00:20]} c1=Q {[%emt 0:00:08]} 33. Rxc1 {[%emt 0:00:04]} Rxc1 {[%emt 0:00:07]} 34. Ra8+ {[%emt 0:00:05]} Bf8 {[%emt 0:00:06]} 35. Ke4 {[%emt 0:00:13]} Rc4+ {[%emt 0:00:11]} 0-1

[Event "10th Iberoamericano-ch 2024"]
[Site "Linares"]
[Date "2024.09.28"]
[Round "6.40"]
[White "Garcia Paolicchi, Raul"]
[Black "Maldonado Mena, German"]
[Result "*"]
[Annotator "ChessBase"]
[ECO "A48"]
[WhiteElo "2034"]
[BlackElo "2123"]
[PlyCount "36"]
[EventDate "2024.09.25"]
[EventType "swiss"]
[EventCountry "ESP"]
[SourceTitle "playchess.com"]
[Source "ChessBase"]
[SourceQuality "1"]
[TimeControl "5400+30"]

1. d4 Nf6 {[%emt 0:05:28]} 2. Nf3 {[%emt 0:00:13]} g6 {[%emt 0:00:06]} 3. Bg5 {[%emt 0:00:36]} Bg7 {[%emt 0:00:05]} 4. Nbd2 {[%emt 0:00:10]} O-O {[%emt 0:00:10]} 5. c3 {[%emt 0:00:11]} d6 {[%emt 0:00:08]} 6. e4 {[%emt 0:00:19]} c5 {[%emt 0:00:25]} 7. dxc5 {[%emt 0:00:16]} dxc5 {[%emt 0:00:05]} 8. Bc4 {[%emt 0:00:18]} a6 {[%emt 0:01:43]} 9. a4 {[%emt 0:01:03]} b6 {[%emt 0:02:06]} 10. Qe2 {[%emt 0:03:37]} h6 {[%emt 0:01:48]} 11. Bf4 {[%emt 0:00:30]} Nc6 {[%emt 0:00:30]} 12. h3 {[%emt 0:00:30]} Bb7 {[%emt 0:07:55]} 13. O-O {[%emt 0:09:15]} e6 {[%emt 0:04:24]} 14. Bh2 {[%emt 0:05:57]} Nd7 {[%emt 0:03:17]} 15. Rad1 {[%emt 0:01:59]} Qe7 {[%emt 0:00:09]} 16. a5 {[%emt 0:00:30]} Nxa5 {[%emt 0:00:30]} 17. Ba2 {[%emt 0:00:18]} Bc6 {[%emt 0:00:30]} 18. b3 {[%emt 0:00:30]} b5 {[%emt 0:00:30]} *

[Event "10th Iberoamericano-ch 2024"]
[Site "Linares"]
[Date "2024.09.28"]
[Round "6.40"]
[White "Garcia Paolicchi, Raul"]
[Black "Maldonado Mena, German"]
[Result "0-1"]
[Annotator "ChessBase"]
[ECO "A48"]
[WhiteElo "2034"]
[BlackElo "2123"]
[PlyCount "94"]
[EventDate "2024.09.25"]
[EventType "swiss"]
[EventCountry "ESP"]
[SourceTitle "playchess.com"]
[Source "ChessBase"]
[SourceQuality "1"]
[TimeControl "5400+30"]

1. d4 {[%emt 1:21:11]} Nf6 {[%emt 1:08:30]} 2. Nf3 {[%emt 0:00:30]} g6 {[%emt 0:00:30]} 3. Bg5 {[%emt 0:00:30]} Bg7 {[%emt 0:00:30]} 4. Nbd2 {[%emt 0:00:30]} O-O {[%emt 0:00:30]} 5. c3 {[%emt 0:00:30]} d6 {[%emt 0:00:30]} 6. e4 {[%emt 0:00:30]} c5 {[%emt 0:00:30]} 7. dxc5 {[%emt 0:00:30]} dxc5 {[%emt 0:00:30]} 8. Bc4 {[%emt 0:00:30]} a6 {[%emt 0:00:30]} 9. a4 {[%emt 0:00:30]} b6 {[%emt 0:00:30]} 10. Qe2 {[%emt 0:00:30]} h6 {[%emt 0:00:30]} 11. Bf4 {[%emt 0:00:30]} Nc6 {[%emt 0:00:30]} 12. h3 {[%emt 0:00:30]} Bb7 {[%emt 0:00:30]} 13. O-O {[%emt 0:00:30]} e6 {[%emt 0:00:30]} 14. Bh2 {[%emt 0:00:30]} Nd7 {[%emt 0:00:30]} 15. Rae1 {[%emt 0:00:30]} Qe7 {[%emt 0:00:30]} 16. e5 {[%emt 0:00:30]} Na5 {[%emt 0:00:30]} 17. Ba2 {[%emt 0:00:30]} Bc6 {[%emt 0:00:30]} 18. b3 {[%emt 0:00:30]} b5 {[%emt 0:00:30]} 19. axb5 {[%emt 0:00:30]} axb5 {[%emt 0:00:30]} 20. Rc1 {[%emt 0:00:30]} Nc4 {[%emt 0:00:30]} 21. Bb1 {[%emt 0:00:30]} Nxd2 {[%emt 0:00:30]} 22. Nxd2 {[%emt 0:00:30]} Ra3 {[%emt 0:00:30]} 23. Be4 {[%emt 0:00:30]} Bxe4 {[%emt 0:00:30]} 24. Qxe4 {[%emt 0:00:30]} Rfa8 {[%emt 0:00:30]} 25. Rb1 {[%emt 0:00:30]} Nb6 {[%emt 0:00:30]} 26. c4 {[%emt 0:00:30]} b4 {[%emt 0:00:30]} 27. Nf3 {[%emt 0:00:30]} Qc7 {[%emt 0:00:30]} 28. Rfd1 {[%emt 0:00:30]} Nc8 {[%emt 0:00:30]} 29. Bf4 {[%emt 0:00:30]} Ne7 {[%emt 0:00:30]} 30. Rd3 {[%emt 0:00:30]} g5 {[%emt 0:00:30]} 31. Bh2 {[%emt 0:00:30]} Qc6 {[%emt 0:00:30]} 32. Qxc6 {[%emt 0:00:30]} Nxc6 {[%emt 0:00:30]} 33. g4 {[%emt 0:00:30]} Ra1 {[%emt 0:00:30]} 34. Rxa1 {[%emt 0:00:30]} Rxa1+ {[%emt 0:00:30]} 35. Kg2 {[%emt 0:00:30]} Kh7 {[%emt 0:00:30]} 36. Bg3 {[%emt 0:00:30]} Rb1 {[%emt 0:00:30]} 37. Re3 {[%emt 0:00:30]} Rb2 {[%emt 0:00:30]} 38. Rd3 {[%emt 0:00:30]} Rc2 {[%emt 0:00:30]} 39. Kf1 {[%emt 0:00:30]} Na5 {[%emt 0:00:30]} 40. Ke1 {[%emt 0:00:30]} Bf8 {[%emt 0:00:30]} 41. Kd1 {[%emt 0:00:30]} Rb2 {[%emt 0:00:30]} 42. Nd2 {[%emt 0:00:30]} Nc6 {[%emt 0:00:30]} 43. Kc1 {[%emt 0:00:30]} Ra2 {[%emt 0:00:30]} 44. Kb1 {[%emt 0:00:30]} Ra3 {[%emt 0:00:30]} 45. Nf3 {[%emt 0:00:30]} Be7 {[%emt 0:00:30]} 46. Kb2 {[%emt 0:00:30]} Kg7 {[%emt 0:00:30]} 47. Re3 {[%emt 0:00:30]} f6 {[%emt 0:00:30]} 0-1